Workbook

Sheet PAGO
B6: DATOS ALUMNO/A
B8: Documento
B9: de identidad: | K9: Número:
B11: Apellido1: | K11: Apellido 2: | T11: Nombre:
B14: Télefono fijo: | H14: Télefono móvil: | O14: e-mail
B17: CURSO EN EL QUE SE MATRICULA | P17: AÑO ACADÉMICO
B18: NIVEL | K18: TÍTULO:
B19: C.F. GRADO MEDIO | K19: Farmacia y Parafarmacia
B21: MODULOS EN LOS QUE SE MATRICULA:
A23: Curso | C23: Módulo | O23: Horas | P23: Matricular | R23: Precio | T23: Convalidar | W23: Precio Conval.
B25: 1º | C25: 0099 Disposición y venta de productos | O25: 102 | R25: =O25*2.4 -> 244.8 | W25: 10
B26: 1º | C26: 0100 Oficina de farmacia | O26: 136 | R26: =O26*2.4 -> 326.4 | W26: 10
B27: 1º | C27: 0102 Dispensación de productos parafarmacéut. | O27: 238 | R27: 571.2 | W27: 10
B28: 1º | C28: 0103 Operaciones básicas de laboratorio | O28: 170 | R28: 408 | W28: 10
B29: 1º | C29: 1709 Itinerario personal para la empleabilidad I | O29: 102 | R29: 244.8 | W29: 10
B30: 1º | C30: 0061 Anatomofisiología y patología básicas | O30: 136 | R30: 326.4 | W30: 10
B31: 1º | C31: 0156 Ingés profesional | O31: 68 | R31: =O31*2.4 -> 163.2 | W31: 10
B32: 1º | C32: Módulo optativo I | O32: 34 | R32: =O32*2.4 -> 81.6 | W32: 10
B33: 2º | C33: 0101 Dispensación de productos farmacéuticos | O33: 297 | R33: =O33*2.4 -> 712.8 | W33: 10
B34: 2º | C34: 0104 Formulación magistral | O34: 198 | R34: 475.2 | W34: 10
B35: 2º | C35: 0105 Promoción de la salud | O35: 198 | R35: 475.2 | W35: 10
B36: 2º | C36: 1710 Itinerario personal para la empleabilidad II | O36: 68 | R36: 163.2 | W36: 10
B37: 2º | C37: 0020 Primeros auxilios | O37: 66 | R37: 158.4 | W37: 10
B38: 2º | C38: 1664 Digitalización aplicada a los sectores prod. | O38: 34 | R38: =O38*2.4 -> 81.6 | W38: 10
B39: 2º | C39: 1713 Proyecto intermodular | O39: 65 | R39: =O39*2.4 -> 156 | W39: 10
B40: 2º | C40: 1708 Sostenibilidad aplicada al sistema product. | O40: 34 | R40: =O40*2.4 -> 81.6 | W40: 10
B41: 2º | C41: Módulo optativo II | O41: 54 | R41: =O41*2.4 -> 129.6 | W41: 10
G43: TOTAL horas e importe | O43: =SUMIF(P25:Q41,"si",O25:O41) -> 0 | P43: h. | R43: =SUMIF(P25:Q41,"si",R25:S41)-SUMIF(T25:U41,"si",R25:S41)+SUMIF(T25:U41,"si",W25:X41) -> 0
B45: FORMA DE PAGO:
B46: El pago inicial se podrá realizar mediante transferencia bancaria o ingreso en efectivo a través de los cajeros automáticos disponibles en la oficinas del Banco Santander, a favor del siguiente número de cuenta:ES05 0049 3319 5928 1405 0252
B49: OBLIGATORIAMENTE DEBERÁ INDICARSE EN EL CONCEPTO EL NOMBRE DEL ALUMNO/A SEGUIDO DE FP-ONLINE
V51: =IF(AND(DATOS!A35=TRUE,AND($O$43<>986,O43<>1014)),DATOS!B35-H54,"") -> 
N52: 8% DTO. PARA MATRICULA CURSO COMPLETO | V52: =IF(DATOS!A35=TRUE,IF(OR($O$43=986,O43=1014),DATOS!B35-(DATOS!B35*8%)-H54,""),"") -> 
V53: =IF(AND(DATOS!A36=TRUE,AND($O$43<>986,O43<>1014)),DATOS!B36,"") -> 
C54: Total a pagar | H54: =SUMIF(DATOS!A31:A32,"verdadero",DATOS!B31:B32) -> 200 | N54: 4% DTO PARA MATRICULA CURSO COMPLETO | V54: =IF(DATOS!A36=TRUE,IF(OR($O$43=986,O43=1014),(R43-(R43*4%)-H54)/3,""),"") -> 
M55: SOLO PARA IMPORTES SUPERIORES A 1.000€
V56: =IF(AND(DATOS!A37=TRUE,AND($O$43<>986,O43<>1014),R43>=1000),DATOS!B37,"") -> 
N57: 3% dto para matricula curso completo | V57: =IF(DATOS!A37=TRUE,IF(OR($O$43=986,O43=1014),(R43-(R43*3%)-PAGO!H54)/9,""),"") -> 
B59: DATOS PARA DOMICILIACIÓN BANCARIA
B61: Entidad Bancaria
B63: Código IBAN | F63: Entidad | J63: sucursal | N63: dc | P63: código cuenta
B64: E | C64: S | D64: =IF(ISBLANK($V$64),"",MID($C$70,1,1)) ->  | E64: =IF(ISBLANK($V$64),"",MID($C$70,2,1)) ->  | N64: =IF($N$67=10,LEFT($N$67,1),IF($N$67=11,0,$N$67)) ->  | O64: =IF($O$67=10,LEFT($O$67,1),IF($O$67=11,0,$O$67)) -> 
N65: =SUM(F64*4,G64*8,H64*5,I64*10) -> 0 | O65: =SUM(P64*1,Q64*2,R64*4,S64*8,T64*5,U64*10,V64*9,W64*7,X64*3,Y64*6) -> 0
N66: =SUM(J64*9,K64*7,L64*3,M64*6) -> 0
E67: =CONCATENATE(B64,C64,D64,E64,E68) -> ES | N67: =IF(ISBLANK($H$64),"",11-MOD(SUM($N$65,$N$66),11)) ->  | O67: =IF(ISBLANK($U$64),"",11-MOD($O$65,11)) -> 
E68: =CONCATENATE(F64,G64,H64,I64,J64,K64,L64,M64,N64,O64,P64,Q64,R64,S64,T64,U64,V64,W64,X64,Y64) -> 
C70: =RIGHT(0&98-MOD(MOD(MOD(MOD(MID(E68,1,8),97)&MID(E68,9,8),97)&MID(E68&142800,17,8),97)&MID(E68&142800,25,2),97),2) ->  | E70: =MOD(MOD(MOD(MOD(MID(E68,1,8),97)&MID(E68,9,8),97)&MID(E68&142800,17,8),97)&MID(E68&142821,25,2),97) -> 
P76: Valladolid a
R77: Firma del Titular

Sheet DATOS
A1: NIVEL | B1: AÑO | C1: TITULO | F1: Celdas vinculadas
A2: C.F. GRADO MEDIO | B2: 1º | C2: Atención a Personas en Situación de Dependencia | F2: Nivel | G2: 1
A3: C.F. GRADO SUPERIOR | B3: 2º | C3: Gestión Administrativa | F3: FPB Y GM | G3: TRUE | H3: 1.12
C4: Farmacia y Parafarmacia | G4: FALSE | H4: 20
C5: Sistemas Microinformáticos y Redes | F5: G.S. Y BACHILLER
C6: Administración y Finanzas | F6: <28 | G6: TRUE | H6: 24.12
C7: Desarrollo Aplicaciones Multiplataforma | F7: >28 | G7: FALSE | H7: 23
C8: Educación Infantil | F8: 1trimestre | G8: TRUE | H8: 69
A9: DOCUMENTO | C9: Gestión de Ventas y Espacios Comerciales | F9: 2trimestre | G9: TRUE | H9: 69
A10: D.N.I. | C10: Guía, Información y Asistencia Turística | F10: 3trimestre | G10: FALSE | H10: 69
A11: N.I.E. | C11: Integración Social
C12: Laboratorio Clínico y Biomédico
A15: SI
A16: NO
A19: 2022/2023
A20: 2023/2024
A21: 2024/2025
A22: 2025/2026
A23: 2026/2027
A24: 2027/2028
A31: FALSE | B31: 1.12
A32: TRUE | B32: =200 -> 200
A35: FALSE | B35: =PAGO!R43 -> 0
A36: FALSE | B36: =(PAGO!R43-PAGO!H54)/3 -> -66.66666667
A37: FALSE | B37: =(PAGO!R43-PAGO!H54)/9 -> -22.22222222

Sheet PROVINCIAS
A1: Provincia
A3: Álava (Vitoria)
A4: Albacete
A5: Alicante
A6: Almería
A7: Asturias (Oviedo)
A8: Ávila
A9: Badajoz
A10: Baleares (Palma de Mallorca)
A11: Barcelona
A12: Burgos
A13: Cáceres
A14: Cádiz
A15: Cantabria (Santander)
A16: Castellón
A17: Ceuta
A18: Ciudad Real
A19: Córdoba
A20: Coruña
A21: Cuenca
A22: Gerona
A23: Granada
A24: Guadalajara
A25: Guipúzcoa (San Sebastián)
A26: Huelva
A27: Huesca
A28: Jaén
A29: La Rioja (Logroño)
A30: Las Palmas
A31: León
A32: Lérida
A33: Lugo
A34: Madrid
A35: Málaga
A36: Melilla
A37: Murcia
A38: Navarra (Pamplona)
A39: Orense
A40: Palencia
A41: Pontevedra
A42: Salamanca
A43: Santa Cruz de Tenerife
A44: Segovia
A45: Sevilla
A46: Soria
A47: Tarragona
A48: Teruel
A49: Toledo
A50: Valencia
A51: Valladolid
A52: Vizcaya (Bilbao)
A53: Zamora
A54: Zaragoza
